fUSD/lending_fUSD_20260410
["ID","MTS","AMOUNT","RATE_DAILY","PERIOD"]
[420234553,1775833843609,-60736.56453892,0.00011991,2]
[420234554,1775833843739,-3726.14162389,0.00011991,2]
[420234558,1775833924160,-5533.0,0.000106,5]
[420234559,1775833924207,-300.0,0.00011664,2]
[420234560,1775833924248,-150.0,0.00011664,2]
[420234561,1775833924296,-4017.0,0.00011665,2]
[420234562,1775833935875,-155.324489,0.00011605,2]
[420234563,1775833935915,-9844.675511,0.00011665,2]
[420234564,1775833955733,-1468.98338199,0.00011665,30]
[420234565,1775833969206,-8531.01661801,0.00011665,2]
[420234566,1775834227499,-304.0,0.00010598,2]
[420234567,1775834243508,-410.6678,0.00010598,2]
[420234568,1775834243953,-6901.07066473,0.00011565,2]
[420234569,1775834245564,-10000.01,0.00011565,2]
[420234570,1775834282564,150.0,0.00011564,2]
[420234571,1775834290230,-2490.1302963,0.00011565,2]
[420234572,1775834290296,-5000.01,0.00011565,2]
[420234573,1775834290413,-5000.01,0.00011565,2]
[420234574,1775834293598,-5000.01,0.00011565,2]
[420234575,1775834293714,-5000.01,0.00011565,2]
[420234576,1775834293899,-5000.01,0.00011565,2]
[420234577,1775834297145,-5000.01,0.00011565,2]
[420234578,1775834297192,-5000.01,0.00011565,2]
[420234579,1775834297232,-5000.01,0.00011565,2]
[420234580,1775834299319,-5000.01,0.00011565,2]
[420234581,1775834299452,-5000.01,0.00011565,2]
[420234582,1775834299613,-5000.01,0.00011565,2]
[420234583,1775834302432,-5000.01,0.00011565,2]
[420234584,1775834302620,-5000.01,0.00011565,2]
[420234585,1775834302789,-5000.01,0.00011565,2]
[420234586,1775834305359,-5000.01,0.00011565,2]
[420234587,1775834305525,-5000.01,0.00011565,2]
[420234588,1775834305684,-5000.01,0.00011565,2]
[420234589,1775834308524,-5000.01,0.00011565,2]
[420234590,1775834308746,-5000.01,0.00011565,2]
[420234591,1775834308877,-5000.01,0.00011565,2]
[420234592,1775834311350,-5000.01,0.00011565,2]
[420234593,1775834312348,197.4591948,0.00011564,2]
[420234594,1775834312408,180.76065967,0.00011564,2]
[420234595,1775834312458,500.0,0.00011564,2]
[420234596,1775834312640,217.98778887,0.00011564,2]
[420234597,1775834313508,500.0,0.00011564,2]
[420234598,1775834314510,-5000.01,0.00011565,2]
[420234599,1775834314862,500.0,0.00011564,2]
[420234600,1775834314947,150.0,0.00011564,2]
[420234601,1775834317364,-5000.01,0.00011565,2]
[420234602,1775834320409,-5000.01,0.00011565,2]
[420234603,1775834323573,-5000.01,0.00011565,2]
[420234604,1775834332455,-5000.01,0.00011565,2]
[420234605,1775834335571,-5000.01,0.00011565,2]
[420234606,1775834341457,300.0,0.00011564,2]
[420234607,1775834341498,-5000.01,0.00011565,2]
[420234608,1775834343922,500.0,0.00011564,2]
[420234609,1775834347629,-5000.01,0.00011565,2]
[420234610,1775834353574,-5000.01,0.00011565,2]
[420234611,1775834361664,500.0,0.00011564,2]
[420234612,1775834379188,500.0,0.00011564,2]
[420234613,1775834391575,500.0,0.00011564,2]
[420234614,1775834398716,184.97123973,0.00011465,2]
[420234615,1775834401144,300.0,0.00011564,2]
[420234616,1775834401196,300.0,0.00011564,2]
[420234617,1775834401245,300.0,0.00011564,2]
[420234618,1775834401309,1200.0,0.00011564,2]
[420234619,1775834401877,500.0,0.00011564,2]
[420234620,1775834401951,500.0,0.00011564,2]
[420234621,1775834407634,162.0,0.00011565,2]
[420234622,1775834410171,-1856.83111693,0.00011565,2]
[420234623,1775834413029,-811.0,0.00011565,2]
[420234624,1775834413093,-8378.01,0.00011565,2]
[420234625,1775834419738,200.0,0.00011565,2]
[420234626,1775834428162,-853.0,0.00011565,2]
[420234627,1775834433999,500.0,0.00011564,2]
[420234628,1775834437571,9300.01,0.00011565,2]
[420234629,1775834437614,699.99,0.00011565,2]
[420234630,1775834446203,-9300.02,0.00011565,2]
[420234631,1775834446338,-10000.01,0.00011565,2]
[420234632,1775834446521,-10000.01,0.00011565,2]
[420234633,1775834446632,-10000.01,0.00011565,2]
[420234634,1775834446731,-10000.01,0.00011565,2]
[420234635,1775834446977,-10000.01,0.00011565,2]
[420234636,1775834447073,-10000.01,0.00011565,2]
[420234637,1775834447204,-10000.01,0.00011565,2]
[420234638,1775834449060,-10000.01,0.00011565,2]
[420234639,1775834450211,579.5274264,8.798e-05,2]
[420234640,1775834452514,-500.0,0.00011564,2]
[420234641,1775834452585,-500.0,0.00011564,2]
[420234642,1775834452628,693.97380162,0.00011465,2]
[420234643,1775834457879,7306.03619838,0.00011565,2]
[420234644,1775834457925,1459.96380162,0.00011565,2]
[420234645,1775834461206,300.0,0.00011564,2]
[420234646,1775834463678,150.0,0.00011564,2]
[420234647,1775834467362,771.0,0.00011565,2]
[420234648,1775834468343,6790.642826,7.945e-05,2]
[420234649,1775834488612,528.40337238,0.00011334,2]
[420234650,1775834488644,2200.52362762,0.00011334,2]
[420234651,1775834488721,190.122,0.00011334,2]
[420234652,1775834517727,401.11328353,0.00011465,2]
[420234653,1775834521199,300.0,0.00011564,2]
[420234654,1775834527315,732.0,0.00011565,2]
[420234655,1775834531890,-8176.25108885,0.00011565,2]
[420234656,1775834531918,-10000.01,0.00011565,2]
[420234657,1775834532008,-10000.01,0.00011565,2]
[420234658,1775834532058,-10000.01,0.00011565,2]
[420234659,1775834532187,-10000.01,0.00011565,2]
[420234660,1775834532228,-10000.01,0.00011565,2]
[420234661,1775834532318,-10000.01,0.00011565,2]
[420234662,1775834533634,-4337.08,0.00011057,2]
[420234663,1775834533673,-1325.85,0.00011565,2]
[420234664,1775834534487,-10000.01,0.00011565,2]
[420234665,1775834578192,10000.01,0.00011562,2]
[420234666,1775834578214,7182.862342,0.00011562,2]
[420234667,1775834581367,300.0,0.00011564,2]
[420234668,1775834593630,696.0,0.00011565,2]
[420234669,1775834600339,-1821.147658,0.00011565,2]
[420234670,1775834600519,-10000.01,0.00011565,2]
[420234671,1775834600749,-10000.01,0.00011565,2]
[420234672,1775834600814,-10000.01,0.00011565,2]
[420234673,1775834600949,-10000.01,0.00011565,2]
[420234674,1775834601110,-10000.01,0.00011565,2]
[420234675,1775834601279,-10000.01,0.00011565,2]
[420234676,1775834601439,-10000.01,0.00011565,2]
[420234677,1775834603170,-10000.01,0.00011565,2]
[420234678,1775834603299,-10000.01,0.00011565,2]
[420234679,1775834620883,459.16,0.00011057,2]
[420234680,1775834642724,150.0,0.00011564,2]
[420234681,1775834645395,502.59145221,0.00011564,2]
[420234682,1775834649158,661.0,0.00011565,2]
[420234683,1775834649934,184.9712397,0.00011465,2]
[420234684,1775834658602,500.0,0.00011564,2]
[420234685,1775834658727,500.0,0.00011564,2]
[420234686,1775834658795,500.0,0.00011564,2]
[420234687,1775834658838,500.0,0.00011564,2]
[420234688,1775834658893,161.01161359,0.00011564,2]
[420234689,1775834669370,5881.2756945,0.00011465,2]
[420234690,1775834669396,2455.35525014,0.00011465,2]
[420234691,1775834674420,499.99999999,0.00011564,2]
[420234692,1775834678012,476.53246177,0.00011564,2]
[420234693,1775834695567,311.53307654,0.00011564,2]
[420234694,1775834701154,183.0,0.00011564,2]
[420234695,1775834701286,1200.0,0.00011564,2]
[420234696,1775834701418,300.0,0.00011564,2]
[420234697,1775834773781,628.0,0.00011565,2]
[420234698,1775834774836,160.95,0.00011198,2]
[420234699,1775834778539,-3784.63921156,0.00011565,2]
[420234700,1775834778702,-10000.01,0.00011565,2]
[420234701,1775834778853,227.7,0.00011526,7]
[420234702,1775834779472,278.31,0.0001153,7]
[420234703,1775834780107,-9494.0,0.00011565,2]
[420234704,1775834780206,-10000.01,0.00011565,2]
[420234705,1775834780652,-10000.01,0.00011565,2]
[420234706,1775834780764,-10000.01,0.00011565,2]
[420234707,1775834780948,-10000.01,0.00011565,2]
[420234708,1775834781062,-10000.01,0.00011565,2]
[420234709,1775834783807,-10000.01,0.00011565,2]
[420234710,1775834783994,-10000.01,0.00011565,2]
[420234711,1775834799177,265.12737532,0.00011465,2]
[420234712,1775834830487,596.0,0.00011565,2]
[420234713,1775834835766,9138.88262468,0.00011559,2]
[420234714,1775834835812,10000.01,0.00011559,2]
[420234715,1775834835869,5306.49938832,0.00011559,2]
[420234716,1775834857442,249.38,0.000113,2]
[420234717,1775834875326,624.57642144,0.00011465,2]
[420234718,1775834881719,184.9712397,0.00011465,2]
[420234719,1775834886036,566.0,0.00011565,2]
[420234720,1775834910202,361.00195515,0.00011465,2]
[420234721,1775834912640,2707.58099539,0.00011305,2]
[420234722,1775834912673,10000.01,0.00011305,2]
[420234723,1775834912725,10000.01,0.00011305,2]
[420234724,1775834912750,10000.01,0.00011305,2]
[420234725,1775834913248,10000.01,0.00011305,2]
[420234726,1775834913297,7702.13900461,0.00011305,2]
[420234727,1775834948023,538.0,0.00011565,2]
[420234728,1775834958708,-1759.87099539,0.00011565,2]
[420234729,1775834958740,-10000.01,0.00011565,2]
[420234730,1775834959445,-10000.01,0.00011565,2]
[420234731,1775834959977,-10000.01,0.00011565,2]
[420234732,1775834960218,-10000.01,0.00011565,2]
[420234733,1775834960266,-10000.01,0.00011565,2]
[420234734,1775834960536,-10000.01,0.00011565,2]
[420234735,1775834961032,-10000.01,0.00011565,2]
[420234736,1775834961329,-10000.01,0.00011565,2]
[420234737,1775834961410,-10000.01,0.00011565,2]
[420234738,1775834963534,152.0,7.311e-05,2]
[420234739,1775834968985,-562.15299272,0.00011565,2]
[420234740,1775835001181,1200.0,0.00011564,2]
[420234744,1775835031512,-250.0,0.00011565,2]
[420234745,1775835031564,-1193.55395623,0.00011565,2]
[420234746,1775835031582,-117391.34303976,0.00011565,2]
[420234747,1775835031605,-10053.13529779,0.00011565,2]
[420234748,1775835031618,-18210.68206637,0.00011565,2]
[420234770,1775835037803,-5319.16595998,0.00011565,2]
[420234771,1775835037818,-1602.40347785,0.00011565,2]
[420234772,1775835037837,-1864.23219928,0.00011565,2]
[420234773,1775835037853,-35400.0,0.00011565,2]
[420234774,1775835038040,-394789.54748333,0.00011565,2]
[420234775,1775835038051,-2710.07396103,0.00011565,2]
[420234804,1775835040023,-3751.94947151,0.00011565,2]
[420234805,1775835040444,-670598.7876068,0.00011565,2]
[420234806,1775835040835,-403.46388559,0.00011565,2]
[420234818,1775835042817,-11062.38820975,0.00011565,2]
[420234819,1775835042841,-1566.50162416,0.00011565,2]
[420234820,1775835042852,-4143.60209556,0.00011565,2]
[420234821,1775835042866,-47375.5995253,0.00011565,2]
[420234823,1775835045545,-6478.00162035,0.00011565,2]
[420234824,1775835045641,-1588.36849833,0.00011565,2]
[420234825,1775835045943,-2465.2115376,0.00011565,2]
[420234826,1775835045957,-139595.10413502,0.00011565,2]
[420234840,1775835047138,-145008.64522393,0.00011565,2]
[420234841,1775835047156,-150.0,0.00011565,2]
[420234842,1775835047171,-5000.0,0.00011565,2]
[420234843,1775835047184,-1235.03116669,0.00011565,2]
[420234844,1775835047213,-207.52369719,0.00011565,2]
[420234845,1775835047224,-859.30543491,0.00011565,2]
[420234846,1775835047234,-6350.38619288,0.00011565,2]
[420234847,1775835047264,-320.0,0.00011565,2]
[420234848,1775835047274,-511.0,0.00011565,3]
[420234849,1775835047287,-162.0,0.00011565,3]
[420234850,1775835047326,-300.0,0.000117,4]
[420234851,1775835047342,-600.0,0.000118,4]
[420234852,1775835047361,-900.0,0.000119,4]
[420234853,1775835047371,-1468.98338199,0.00011931,30]
[420234854,1775835047386,-299.99,0.00011958,2]
[420234855,1775835047399,-999.99,0.00011958,2]
[420234856,1775835047408,-9999.99,0.00011958,2]
[420234857,1775835047425,-6770.58,0.00011958,2]
[420234858,1775835047443,-9999.99,0.00011958,2]
[420234859,1775835047452,-43516.85765437,0.00011958,2]
[420234860,1775835047502,-961.05676293,0.00011958,2]
[420234861,1775835047515,-1136.82271602,0.00011958,2]
[420234862,1775835051704,369.17653639,0.00011564,2]
[420234863,1775835053198,-4820.81713332,0.00011958,2]
[420234864,1775835053344,-358.37573336,0.00011958,2]
[420234865,1775835053379,-1670.32853328,0.00011958,2]
[420234866,1775835053487,-4731.80066369,0.00011958,2]
[420234867,1775835053523,-1210.80080303,0.00011958,2]
[420234868,1775835053563,-150.99,0.00011958,2]
[420234869,1775835053593,-2370.88839394,0.00011958,2]
[420234870,1775835053696,-2534.65160606,0.00011958,2]
[420234871,1775835053782,-2534.65160606,0.00011958,2]
[420234872,1775835053827,-4057.84160606,0.00011958,2]
[420234873,1775835053864,-872.86518182,0.00011958,2]
[420234874,1775835053894,-1011.46160606,0.00011958,2]
[420234875,1775835053904,-150.99,0.00011958,2]
[420234876,1775835053913,-624.57642139,0.00011958,2]
[420234877,1775835053928,-361.00195514,0.00011958,2]
[420234878,1775835053937,-500.0,0.00011958,2]
[420234879,1775835053946,-519.71,0.00011958,2]
[420234880,1775835053956,-2774.42841135,0.00011968,2]
[420234881,1775835053993,-532.16755025,0.00011968,2]
[420234882,1775835054046,-1064.3351005,0.00011968,2]
[420234883,1775835054086,-7871.339799,0.00011968,2]
[420234884,1775835054131,-4731.1770645,0.00011989,2]
[420234885,1775835054147,-1468.98338199,0.00011991,30]
[420234886,1775835054158,-1112.6152614,0.00011991,2]
[420234887,1775835054178,-1468.98338199,0.00011995,30]
[420234888,1775835054191,-150.0,0.00012,2]
[420234889,1775835054202,-3.91580962,0.00012002,2]
[420234890,1775835054247,-281.08419038,0.00012002,2]
[420234891,1775835054306,-689.0,0.00012003,2]
[420234892,1775835054357,-426.0,0.00012026,2]
[420234893,1775835054402,-536.0,0.00012028,2]
[420234894,1775835054447,-564.0,0.00012031,2]
[420234895,1775835054484,-543.17989117,0.00012047,2]
[420234896,1775835054523,-888.96,0.00012054,2]
[420234897,1775835054563,-151.0,0.00012068,2]
[420234898,1775835054599,-257.0,0.0001207,2]
[420234899,1775835055274,-1327.5618369,0.00012071,2]
[420234900,1775835055331,-10000.01,0.00012071,2]
[420234901,1775835056143,-10000.01,0.00012071,2]
[420234902,1775835056270,-10000.01,0.00012071,2]
[420234903,1775835056359,-10000.01,0.00012071,2]
[420234904,1775835059155,-10000.01,0.00012071,2]
[420234905,1775835059351,-4331.9093741,0.00012071,2]
[420234906,1775835059410,-1336.1912518,0.00012071,2]
[420234907,1775835059652,-10000.01,0.00012071,2]
[420234908,1775835069882,-382.08958734,0.00011564,2]
[420234909,1775835070022,-9235.83082532,0.00012071,2]
[420234910,1775835070408,-4316.73251348,0.00012071,2]
[420234911,1775835070455,-259.23236153,0.00012071,30]
[420234912,1775835070514,-215.08024998,0.00012071,3]
[420234913,1775835070596,-417.91975002,0.00012071,3]
[420234914,1775835077372,-1114.0,0.00012086,2]
[420234915,1775835077431,-259.23236153,0.00012086,30]
[420234916,1775835080027,2681.77111519,0.00011958,2]
[420234917,1775835080070,1027.8947003,0.00011958,2]
[420234918,1775835080111,3543.87946145,0.00011958,2]
[420234919,1775835080134,3246.73709896,0.00011958,2]
[420234920,1775835080318,6753.27290104,0.00011958,2]
[420234921,1775835080362,671.95785446,0.00011958,2]
[420234922,1775835092269,-302.0,0.00012091,2]
[420234923,1775835092328,-259.23236153,0.00012091,30]
[420234924,1775835099232,500.0,0.00011564,2]
[420234925,1775835099293,152.70896417,0.00011564,2]
[420234926,1775835099351,249.20599713,0.00011564,2]
[420234927,1775835099401,500.0,0.00011564,2]
[420234928,1775835099452,470.70539076,0.00011564,2]
[420234929,1775835099522,500.0,0.00011564,2]
[420234930,1775835099566,231.34499539,0.00011564,2]
[420234931,1775835099616,500.0,0.00011564,2]
[420234932,1775835099667,500.0,0.00011564,2]
[420234933,1775835099733,176.98410896,0.00011564,2]
[420234934,1775835099787,500.0,0.00011564,2]
[420234935,1775835099866,500.0,0.00011564,2]
[420234936,1775835099962,341.10051272,0.00011564,2]
[420234937,1775835100505,500.0,0.00011564,2]
[420234938,1775835118563,10000.01,0.00012114,2]
[420234939,1775835118694,10000.01,0.00012114,2]
[420234940,1775835118973,2483.9648,0.00012114,2]
[420234941,1775835128807,653.0,0.00012114,2]
[420234942,1775835133217,500.0,0.00011564,2]
[420234943,1775835133262,500.0,0.00011564,2]
[420234944,1775835133317,457.55277372,0.00011564,2]
[420234945,1775835133380,500.0,0.00011564,2]
[420234946,1775835133426,500.0,0.00011564,2]
[420234947,1775835133474,428.63195549,0.00011564,2]
[420234948,1775835133558,300.0,0.00011564,2]
[420234949,1775835133661,500.0,0.00011564,2]
[420234950,1775835133715,500.0,0.00011564,2]
[420234951,1775835133787,500.0,0.00011564,2]
[420234952,1775835133862,500.0,0.00011564,2]
[420234953,1775835133959,500.0,0.00011564,2]
[420234954,1775835134021,500.0,0.00011564,2]
[420234955,1775835134070,500.0,0.00011564,2]
[420234956,1775835134131,176.86047079,0.00011564,2]
[420234957,1775835134178,323.13952921,0.00011564,2]
[420234958,1775835134241,317.05512009,0.00011564,2]
[420234959,1775835134326,500.0,0.00011564,2]
[420234960,1775835136059,150.0,0.00011841,2]
[420234961,1775835136120,1852.42,0.00011841,2]
[420234962,1775835162235,200.0,0.00011839,2]
[420234963,1775835166942,304.84380955,0.00011564,2]
[420234964,1775835167014,500.0,0.00011564,2]
[420234965,1775835172660,174.25744658,0.00011564,2]
[420234966,1775835172731,500.0,0.00011564,2]
[420234967,1775835193241,621.0,0.00012114,2]
[420234968,1775835193492,621.0,0.00012114,2]
[420234969,1775835217945,329.0,0.00012114,2]
[420234970,1775835227695,2187.5745,0.00011465,2]
[420234971,1775835246423,582.0,0.00012114,2]
[420234972,1775835246846,582.0,0.00012114,2]
[420234973,1775835277905,255.71959457,0.00012114,2]
[420234974,1775835277947,73.28040543,0.00012114,2]
[420234975,1775835300491,224.8399,0.00012114,2]
[420234976,1775835311140,524.0,0.00012114,2]
[420234977,1775835311812,162.0,0.00012114,2]
[420234978,1775835318076,500.0,0.00012014,2]
[420234979,1775835320179,8515.88969457,0.00012038,2]
[420234980,1775835320257,9946.42646453,0.00012038,2]
[420234981,1775835338636,53.58353547,0.00012114,2]
[420234982,1775835338683,133.41646453,0.00012114,2]
[420234983,1775835366767,498.0,0.00012114,2]
[420234984,1775835373777,238.79,0.00012018,7]
[420234985,1775835425058,473.0,0.00012114,2]
[420234986,1775835440201,8208.98,0.00011635,2]
[420234987,1775835448472,175.67,9.29e-05,2]
[420234988,1775835474733,197.0441,0.00012014,2]
[420234989,1775835481236,75.10943547,0.00012114,2]
[420234990,1775835481266,8919.83346453,0.00012114,2]
[420234991,1775835481879,1080.17653547,0.00011567,2]
[420234992,1775835481910,324.25346453,0.00011567,2]
[420234993,1775835482093,340.58489967,0.00011964,2]
[420234994,1775835487161,449.0,0.00012114,2]
[420234995,1775835489390,8886.1716358,0.00012038,2]
[420234996,1775835489418,10000.01,0.00012038,2]
[420234997,1775835489470,10000.01,0.00012038,2]
[420234998,1775835489515,3514.3877394,0.00012038,2]
[420234999,1775835498229,949.42,0.00011577,2]
[420235000,1775835515545,725.43,0.00011567,2]
[420235001,1775835523158,3548.3827984,0.00012038,2]
[420235002,1775835530981,1500.0,0.00011598,2]
[420235003,1775835547008,427.0,0.00012114,2]
[420235004,1775835558619,2072.92,0.00011608,2]
[420235005,1775835601455,1200.0,0.00012113,2]
[420235006,1775835611047,405.0,0.00012114,2]
[420235007,1775835619887,121.2772016,0.00011918,2]
[420235008,1775835619918,878.7227984,0.00011918,2]
[420235009,1775835619980,1000.0,0.00012024,2]
[420235010,1775835620039,1000.0,0.00011871,2]
[420235011,1775835645703,7121.2872016,0.00012,2]
[420235012,1775835645741,10000.01,0.00012,2]
[420235013,1775835645775,10000.01,0.00012,2]
[420235014,1775835645805,10000.01,0.00012,2]
[420235015,1775835651158,-2548.54905897,0.00012,2]
[420235016,1775835654403,564.66,0.00011537,2]
[420235017,1775835683311,4720.55,0.00011516,2]
[420235018,1775835695564,5279.46,0.0001155,2]
[420235019,1775835695603,8853.079541,0.0001155,2]
[420235020,1775835958232,415.0,0.0001145,30]
[420235021,1775835958260,722.8955016,0.0001145,30]
[420235022,1775835958311,1538.15983701,0.0001145,30]
[420235023,1775835959093,2676.05533861,0.00011487,30]
[420235024,1775835960159,1605.18502377,0.00011492,30]
[420235025,1775836034144,1600.0,0.00011274,2]
[420235026,1775836046830,4065.461836,0.00011393,2]
[420235027,1775836120452,4334.548164,0.00011301,2]
[420235028,1775836120486,3679.631836,0.00011301,2]
[420235029,1775836136283,221.39744934,0.00011368,2]
[420235030,1775836144696,3174.8,0.0001129,2]
[420235034,1775836234457,-500.0,0.00011181,2]
[420235035,1775836234467,-318.0,0.00011459,2]
[420235036,1775836234492,-258.7824222,0.00011459,2]
[420235037,1775836234505,-2151.69244264,0.00011468,2]
[420235038,1775836234515,-196.69422067,0.00011468,2]
[420235039,1775836234539,-172.3,0.00011487,2]
[420235040,1775836234554,-1070.87031484,0.00011492,30]
[420235041,1775836234568,-1200.0,0.00011549,2]
[420235042,1775836234599,-300.0,0.00011549,2]
[420235043,1775836234609,-2676.05533861,0.0001155,30]
[420235044,1775836234651,-162.0,0.0001155,3]
[420235045,1775836234663,-385.0,0.0001155,3]
[420235046,1775836234699,-221.39744932,0.00011653,2]
[420235047,1775836234711,-1000.0,0.00011702,2]
[420235048,1775836234742,-400.0,0.00011838,2]
[420235049,1775836234755,-262.3915392,0.00011885,2]
[420235050,1775836234785,-221.39744932,0.00011938,2]
[420235051,1775836234795,-206.0,0.00011938,2]
[420235052,1775836234818,-349.0,0.00011962,2]
[420235053,1775836234835,-150.0,0.00012013,2]
[420235054,1775836234846,-2282.14049704,0.00012014,2]
[420235055,1775836234876,-2471.7658,0.00012014,2]
[420235056,1775836234890,-49943.6604,0.00012014,2]
[420235057,1775836234930,-12887.1542565,0.00012038,2]
[420235058,1775836234948,-3182.6707862,0.00012038,2]
[420235059,1775836234988,-385.0,0.000121,3]
[420235060,1775836235050,-1573.21213937,0.00012114,30]
[420235061,1775836235133,-1573.21213937,0.00012114,30]
[420235062,1775836235157,-8391.31744643,0.00012114,2]
[420235063,1775836235175,-11041.16889797,0.00012114,2]
[420235064,1775836235190,-6381.9036556,0.00012114,2]
[420235065,1775836235200,-9999.99,0.00012114,2]
[420235066,1775836235209,-12532.91438665,0.00012114,2]
[420235067,1775836235222,-7477.42561335,0.00012114,2]
[420235068,1775836235236,-9999.99,0.00012114,2]
[420235069,1775836235245,-1573.21213937,0.00012114,30]
[420235070,1775836235255,-999.99,0.00012114,2]
[420235071,1775836235265,-4999.99,0.00012114,2]
[420235072,1775836235279,-9999.99,0.00012114,2]
[420235073,1775836235290,-150.99,0.00012114,2]
[420235074,1775836235300,-1573.21213937,0.00012122,30]
[420235075,1775836235310,-328.14138454,0.0001213,2]
[420235076,1775836235331,-902.84861546,0.0001213,2]
[420235077,1775836235340,-166.51,0.00012184,2]
[420235078,1775836235354,-185.05947131,0.00012193,2]
[420235079,1775836238195,-152.42067851,0.00011878,2]
[420235080,1775836238210,-49.41591526,0.00012193,2]
[420235081,1775836238223,-701.84703849,0.00012193,2]
[420235082,1775836238332,-88.04155569,0.00012193,2]
[420235083,1775836238345,-335.14072774,0.00012221,2]
[420235084,1775836238372,-297.17679186,0.00012299,2]
[420235085,1775836238383,-738.90428471,0.00012446,2]
[420235086,1775836238409,-1543.23621226,0.00012446,2]
[420235087,1775836238419,-344.351,0.00012562,2]
[420235088,1775836238431,-697.813334,0.00012563,2]
[420235089,1775836238466,-660.39730431,0.00012563,2]
[420235092,1775836238478,-863.20160662,0.00012563,2]
[420235094,1775836238502,-278.58775507,0.00012563,2]
[420235096,1775836238519,-541.31909561,0.00012571,2]
[420235098,1775836238531,-125.35396554,0.00012571,2]
[420235100,1775836238561,-1068.28093946,0.00012573,2]
[420235102,1775836238570,-350.0,0.0001258,2]
[420235104,1775836238597,-1473.46055651,0.00012595,2]
[420235106,1775836238610,-210.6621686,0.00012595,2]
[420235108,1775836238627,-1649.01037734,0.00012595,2]
[420235111,1775836238646,-3350.98962266,0.00012595,2]
[420235113,1775836238661,-195.0,0.00012595,2]
[420235115,1775836238670,-250.0,0.00012595,2]
[420235117,1775836238689,-5000.0,0.00012595,2]
[420235119,1775836238699,-160.95,0.00012598,2]
[420235121,1775836238713,-150.0,0.000126,2]
[420235123,1775836238736,-500.0,0.000126,2]
[420235125,1775836238751,-385.0,0.0001265,3]
[420235127,1775836238760,-472.84427119,0.00012653,2]
[420235129,1775836238794,-1109.74589812,0.00012662,2]
[420235131,1775836238803,-577.17,0.00012662,2]
[420235133,1775836238813,-162.21892243,0.00012662,2]
[420235134,1775836238844,-500.0,0.00012662,2]
[420235137,1775836238854,-207.87986226,0.00012662,2]
[420235139,1775836238864,-500.0,0.00012662,2]
[420235140,1775836238877,-191.51914473,0.00012662,2]
[420235143,1775836238889,-393.42357547,0.00012662,2]
[420235145,1775836238899,-500.0,0.00012662,2]
[420235147,1775836238908,-500.0,0.00012662,2]
[420235149,1775836238923,-193.57841951,0.00012662,2]
[420235150,1775836238932,-293.62667535,0.00012662,2]
[420235152,1775836238941,-526665.39579235,0.00012663,2]
[420235261,1775836240509,-234.47538656,0.000126,2]
[420235263,1775836240525,-394.94429709,0.000126,2]
[420235265,1775836240537,-39.10180578,0.00012663,2]
[420235292,1775836240879,-678.69275224,0.00012663,2]
[420235294,1775836240909,-400.35271897,0.00012663,2]
[420235297,1775836240940,-1442.32233601,0.00012663,2]
[420235299,1775836240969,-1820.89468532,0.00012663,2]
[420235649,1775836248835,-197.47214854,0.00012663,2]
[420235650,1775836248845,-172.79930713,0.00012663,2]
[420235653,1775836248916,-3766.79534422,0.00012663,2]
[420235654,1775836249123,-425867.83956457,0.00012663,2]
[420235655,1775836249135,-387.93218086,0.00012663,2]
[420235656,1775836249148,-2389.44295263,0.00012663,2]
[420235657,1775836249174,-21761.65415992,0.00012663,2]
[420235658,1775836249183,-500.0,0.00012673,2]